Cogmind - Beta 17.1 @@@ ROGUE MODE // 2026.09.18 @ 21:18:04 Player: fai Result: Destroyed self with Rocket Launcher Performance ------------- Evolutions (1) 500 Regions Visited (5) 1000 Robots Destroyed (87) 435 Value Destroyed (3424) 3424 Prototype IDs (3) 60 Alien Tech Used (0) 0 Bonus (10742) 10742 TOTAL SCORE: 16161 Bonus ------- High Alert Combat Kills 245 Follower Combat Kills 197 Prayed to X0-1V1 5000 Major X0-1V1 Interference 4600 Entered Garrisons 200 Used RIF Installer 500 Cogmind --------- Core Integrity 0/280 Matter 221/300 Energy 265/265 System Corruption 0% Temperature Cool (0) Movement Rolling (105) Ox1 Location -9/Recycling Parts ------- > --- POWER (1) -------- Improved Ion Engine > --- PROPULSION (3) --- Armored Wheel Armored Wheel Armored Wheel (fused) > --- UTILITY (3) ------ High-capacity Storage Unit Visual Processing Unit Relay Coupler [Sentry] (99) > --- WEAPON (2) ------- Rocket Launcher Datajack > --- INVENTORY (20) --- Wheel Authchip [R/NC] Authchip [R/Combat] Authchip [R/Combat] Relay Coupler [NC] (21) Relay Coupler [Grunt] (27) Relay Coupler [Brawler] (27) Relay Coupler [Brawler] (29) Relay Coupler [Demolisher] (20) Relay Coupler [Specialist] (17) Relay Coupler [Hunter] (13) Relay Coupler [Hunter] (17) Relay Coupler [Hunter] (17) Heavy Assault Rifle Shotgun Hammer Blade Saw Peak State ------------ > --- POWER ------------ Improved Ion Engine > --- PROPULSION ------- Armored Wheel Armored Wheel Armored Wheel > --- UTILITY ---------- High-capacity Storage Unit Relay Coupler [Sentry] X0-1V1's Piety Tracker > --- WEAPON ----------- Shotgun Datajack > --- INVENTORY -------- Visual Processing Unit Authchip [R/NC] Authchip [R/Combat] Authchip [Armor] Relay Coupler [NC] Relay Coupler [Grunt] Relay Coupler [Brawler] Relay Coupler [Brawler] Relay Coupler [Sentry] Relay Coupler [Demolisher] Relay Coupler [Specialist] Relay Coupler [Hunter] Relay Coupler [Hunter] Relay Coupler [Hunter] Heavy Assault Rifle Rocket Launcher Hammer Blade Saw [Rating: 35] Favorites ----------- Power Heavy Ion Engine Engine Heavy Ion Engine Power Core Light Nuclear Core Propulsion Wheel Treads Light Treads Wheel Wheel Utility Relay Coupler [Sentry] Device X0-1V1's Piety Tracker Storage High-capacity Storage Unit Processor Improved Targeting Computer Hackware Relay Coupler [Sentry] Weapon Spread Laser Energy Gun Spread Laser Energy Cannon Advanced Beam Cannon Ballistic Gun Shotgun Launcher Grenade Launcher Impact Weapon Hammer Slashing Weapon Blade Saw Special Melee Weapon Datajack Build | -11 -10 -9 -9 -9 -9 ------- Run | Yrd Mat Mat Sto Gar Rec Slots Evolved 2 | . . 2 . . . Power . | . . . . . . Propulsion 1 | . . 1 . . . Utility 1 | . . 1 . . . Weapon . | . . . . . . Parts Attached 66 | 7 9 6 20 16 8 Power 8 | 1 3 . 2 1 1 Engine 7 | 1 2 . 2 1 1 Core 1 | . 1 . . . . Reactor . | . . . . . . Propulsion 22 | 2 3 2 8 7 . Treads 3 | . . 1 . 2 . Leg . | . . . . . . Wheel 19 | 2 3 1 8 5 . Hover . | . . . . . . Flight . | . . . . . . Utility 15 | 2 1 2 3 3 4 Device 5 | 1 . 1 2 . 1 Storage 3 | 1 . 1 1 . . Processor 2 | . 1 . . . 1 Hackware 5 | . . . . 3 2 Protection . | . . . . . . Artifact . | . . . . . . Weapon 21 | 2 2 2 7 5 3 Energy Gun 6 | 1 . . 4 1 . Energy Cannon 2 | . 2 . . . . Ballistic Gun 6 | 1 . 2 1 1 1 Ballistic Cannon . | . . . . . . Launcher 3 | . . . 1 1 1 Special Weapon . | . . . . . . Impact Weapon 1 | . . . 1 . . Slashing Weapon 1 | . . . . 1 . Piercing Weapon . | . . . . . . Special Melee Weapon 2 | . . . . 1 1 Unidentified Prototypes 3 | . 1 1 1 . . Corrupted Parts 1 | . . . . 1 . System Corruption 3 | . . . . 3 . Parts Lost 29 | . 5 1 9 14 . Power 3 | . 2 . . 1 . Propulsion 15 | . 2 1 6 6 . Utility 2 | . . . 1 1 . Weapon 9 | . 1 . 2 6 . Highest Loss Streak 6 | . 3 1 4 6 . To Critical Strikes . | . . . . . . Average Backups 10 | 1 7 6 7 13 16 Power . | . . . . . . Propulsion . | 1 2 . . . . Utility 5 | . 1 2 1 8 12 Weapon 3 | . 2 3 3 3 3 Tool/Special . | . . . . . . Unused Backups 26 | . 3 1 1 4 17 Power . | . . . . . . Propulsion 2 | . 1 . . . 1 Utility 15 | . . . . 1 14 Weapon 9 | . 2 1 1 3 2 Tool/Special . | . . . . . . Average Slot Usage (%) 93 | . 99 95 97 85 98 Engine 9 | . 10 . 10 10 10 Core 1 | . 3 11 . . . Treads 2 | . . 3 3 3 . Wheel 25 | . 27 25 28 18 33 Device 4 | . 4 11 9 . 5 Storage 12 | . 14 11 11 13 11 Processor 6 | . 9 11 11 3 . Hackware 8 | . . . . 16 15 Energy Gun 6 | . 9 . 17 2 . Energy Cannon 3 | . 14 17 . . . Ballistic Gun 5 | . 4 4 3 3 10 Launcher 1 | . . . . 3 . Impact Weapon 3 | . . . . 7 . Special Melee Weapon 2 | . . . . . 10 Peak Build Rating 35 | 7 16 29 29 28 35 Average Rating 20 | 5 10 28 20 20 28 On Entrance 14 | . 7 16 29 16 18 Avg Prop Armor Cover (%) 6 | . . 10 6 . . Naked Turns . | . . . . . . Heaviest Build 59 | 15 18 19 59 59 52 Greatest Support 50 | 20 20 30 50 48 44 Greatest Overweight (x) 4 | . . . 1 4 1 Average Overweight (x) . | . . . . 1 . Largest Inventory Capacity 20 | 8 8 15 20 20 20 Average Capacity 14 | 7 8 8 8 20 20 Most Carried 19 | 5 8 8 9 19 18 Average Carried 10 | 1 7 6 7 13 16 Final Capacity 20 | 8 8 8 20 20 20 Final Carried 17 | 5 8 7 9 15 17 Class Distribution -------------------- 56% | Mutant 25% | Bothacker-Mutant 18% | Scavenger-Mutant Dominant Class ---------------- Mutant | -10/Materials Scavenger-Mutant | -9/Materials Mutant | -9/Storage Mutant | -9/Garrison Bothacker-Mutant | -9/Recycling Resources | -11 -10 -9 -9 -9 -9 ----------- Run | Yrd Mat Mat Sto Gar Rec Matter Collected 1700 | 296 150 50 611 284 309 Remotely . | . . . . . . Salvage Created 3190 | 164 497 244 1354 931 . Parts 181 | 12 21 10 73 65 . Haulers Intercepted 5 | . 2 . 3 . . Recyclers Shooed 6 | . . . 6 . . Parts Field Recycled . | . . . . . . Retrieved Matter . | . . . . . . Parts Self-Destructed . | . . . . . . Prevented . | . . . . . . Parts Restored . | . . . . . . Kills | -11 -10 -9 -9 -9 -9 ------- Run | Yrd Mat Mat Sto Gar Rec Combat Hostiles Destroyed 63 | . 9 3 27 24 . Melee 1 | . . . . 1 . Guns 34 | . 4 . 23 7 . Cannons 8 | . 5 3 . . . AOE 20 | . . . 4 16 . Classes Destroyed 13 | 2 3 2 5 1 . Worker 2 | . . . 2 . . Builder 2 | . . . 2 . . Tunneler 3 | 3 . . . . . Hauler 5 | . 2 . 3 . . Recycler 8 | 1 . 1 6 . . Operator 1 | . . 1 . . . Watcher 3 | . 1 . 2 . . Swarmer 12 | . . . 4 8 . Cutter 2 | . . . . 2 . Grunt 31 | . 9 2 13 7 . Brawler 1 | . . . 1 . . Duelist 2 | . . . 1 1 . Sentry 15 | . . 1 8 6 . Best Kill Streak 11 | 2 4 3 7 11 . Combat Bots Only 11 | . 3 3 5 11 . Max Kills in Single Turn 4 | 1 1 1 2 4 . Gunslinging 1 | . . . . 1 . Exploded 4 | . . . 2 4 . Melee 1 | . . . . 1 . Uniques/NPCs Destroyed . | . . . . . . Combat | -11 -10 -9 -9 -9 -9 -------- Run | Yrd Mat Mat Sto Gar Rec Hostile Shots Fired 339 | . 52 21 119 136 11 Missed 92 | . 10 6 30 42 4 Hits 247 | . 42 15 89 94 7 Melee 5 | . . . 4 1 . Projectile 242 | . 42 15 85 93 7 AOE 2 | . . . . 2 . Critical Strikes 8 | . 2 . 1 5 . Damage Taken 3148 | . 603 196 1095 1151 103 Core 605 | . 57 37 231 242 38 Absorbed by Shields 7 | . . . . . 7 Core Remaining (%) 88 | 100 77 . . . . Volleys Fired 178 | 15 44 12 78 28 1 Largest 2 | 2 2 2 2 2 1 Hottest 136 | 70 136 136 130 130 33 Shots Fired 318 | 30 73 24 152 38 1 Gun 247 | 30 44 . 150 23 . Cannon 53 | . 29 24 . . . Launcher 18 | . . . 2 15 1 Special . | . . . . . . Kinetic 78 | 15 22 . 34 7 . Thermal 214 | 15 51 24 116 8 . Explosive 10 | . . . 2 7 1 Electromagnetic 16 | . . . . 16 . Robot Hit Streak 15 | 6 13 9 15 9 . Robot Miss Streak 6 | 2 3 2 6 4 2 Penetration Max . | . . . . . . Secondary Targets 2 | . . . 1 1 . Max Gunslinging Chain 1 | . . . 1 1 . Shots Hit Robots 292 | 18 54 16 130 49 25 Core Hits 246 | 5 21 5 161 52 2 Critical Kills . | . . . . . . Critical Parts Destroyed . | . . . . . . Critical Strikes 6 | . 1 . . 5 . Burn 1 | . 1 . . . . Sever 5 | . . . . 5 . Melee Attacks 83 | . . . 8 49 26 Impact 32 | . . . 8 23 1 Slashing 18 | . . . . 18 . Piercing . | . . . . . . Sneak Attacks 25 | . . . . 2 23 Combat Hostiles . | . . . . . . Follow-up Attacks . | . . . . . . Damage Inflicted 5026 | 226 872 325 2011 1533 59 Guns 2813 | 226 461 . 1857 269 . Cannons 731 | . 406 325 . . . Explosions 1010 | . . . 154 797 59 Melee 467 | . . . . 467 . Ramming 5 | . 5 . . . . Kinetic 760 | 86 247 . 351 76 . Thermal 2863 | 140 620 325 1506 272 . Explosive 445 | . . . 154 232 59 Electromagnetic 486 | . . . . 486 . Impact 18 | . . . . 18 . Slashing 449 | . . . . 449 . Piercing . | . . . . . . Highest Corruption 4 | . 1 . . 4 . Average Corruption 1 | . 1 . . 1 . Corruption Purged . | . . . . . . Corruption Blocked . | . . . . . . Effects 10 | . 4 . . 6 . Message Errors 2 | . 1 . . 1 . Matter Fused 2 | . 1 . . 1 . Heat Flow Errors 1 | . 1 . . . . Energy Discharges 1 | . 1 . . . . Data Loss (minor) 3 | . . . . 3 . Data Loss (major) 1 | . . . . 1 . Overload Shots . | . . . . . . Overflow Damage 34 | . 11 . . 13 10 Projectiles 11 | . 11 . . . . Explosions 23 | . . . . 13 10 Melee . | . . . . . . Knockbacks . | . . . . . . Impact . | . . . . . . Kinetic . | . . . . . . Secondary . | . . . . . . Self-Inflicted Damage 120 | . 2 . . 95 23 Shots 6 | . . . . 5 1 Rammed 2 | . 2 . . . . Targets Rammed 2 | . 2 . . . . Kicked . | . . . . . . Crushed . | . . . . . . Highest Temperature 443 | 54 377 306 443 286 . Average Temperature 114 | 18 147 130 114 76 . Received Heat Transfer 1161 | . 348 81 360 354 18 Effects 6 | . 3 . . 3 . Interference 6 | . 3 . . 3 . Siege Activations . | . . . . . . Martial Activations . | . . . . . . Shielding Activations . | . . . . . . Robots Disrupted 1 | . . . . 1 . Combat Hostiles 1 | . . . . 1 . Robots Corrupted . | . . . . . . Combat Hostiles . | . . . . . . Parts Fried . | . . . . . . Impact Corruptions . | . . . . . . Robots Melted . | . . . . . . Combat Hostiles . | . . . . . . Parts Melted 4 | . 3 . . 1 . Heat Transferred 4807 | 407 1443 592 1915 450 . Parts Sabotaged . | . . . . . . Parts Stolen . | . . . . . . Parts Stripped . | . . . . . . Power Chain Reactions 5 | . . . . 5 . Alert | -11 -10 -9 -9 -9 -9 ------- Run | Yrd Mat Mat Sto Gar Rec Maximum Alert Level 3 | . . 1 2 3 2 Low Security (%) 31 | 100 100 84 24 . 16 Level 1 33 | . . 15 48 26 65 Level 2 15 | . . . 26 17 17 Level 3 19 | . . . . 56 . Level 4 . | . . . . . . Level 5 . | . . . . . . High Security . | . . . . . . Max Security . | . . . . . . Peak Influence 1074 | 5 70 348 465 1074 469 Initial 469 | . 3 3 142 287 469 Average 361 | 1 29 76 288 670 287 Influence Increases 2612 | 20 257 415 890 957 73 Destroy 0b10 Robot/C 1255 | . 180 60 540 430 45 Destroy 0b10 Robot/NC 128 | 20 15 10 75 8 . Destroy Leader 242 | . 46 20 160 16 . Allied During Kill 28 | . . . . 23 5 Successful Hack 49 | . 16 13 4 . 16 Disable Machine 45 | . . . 45 . . Anti-Garrison Action 391 | . . . . 391 . Destroy Structure 102 | . . . 6 89 7 Partial Spotted 30 | . . . 30 . . Lose Combat Pursuer 60 | . . 30 30 . . Miscellaneous 282 | . . 282 . . . Influence Decreases 2606 | 15 253 86 786 355 1111 Entered New Map 934 | . 2 6 196 155 575 Time Decay 948 | 15 201 80 350 . 302 Lost Part 280 | . 50 . 90 140 . Lost Ally 144 | . . . . 60 84 Purge Threat 300 | . . . 150 . 150 Squads Dispatched 10 | . 3 1 5 . 1 Investigation 1 | . . . 1 . . Extermination . | . . . . . . Reinforcement 6 | . 3 1 2 . . Assault 1 | . . . . . 1 Garrison 2 | . . . 2 . . Intercept . | . . . . . . Searches Triggered . | . . . . . . Construction Impeded 1 | . . . 1 . . Haulers Reinforced . | . . . . . . Active Scanning Responses . | . . . . . . Cargo Convoy Interrupts . | . . . . . . Stealth | -11 -10 -9 -9 -9 -9 --------- Run | Yrd Mat Mat Sto Gar Rec Distress Signals 2 | . . . 2 . . Communications Jammed . | . . . . . . Distress Signals . | . . . . . . Times Spotted 107 | . 14 6 33 43 11 Peak Tracking Total 12 | . 4 3 5 12 4 Tactical Retreats 3 | . . 1 2 . . Traps | -11 -10 -9 -9 -9 -9 ------- Run | Yrd Mat Mat Sto Gar Rec Traps Triggered 11 | . 2 . 1 8 . Indirectly . | . . . . . . Trap Hack Attempts . | . . . . . . Triggered . | . . . . . . Disarmed . | . . . . . . Reprogrammed . | . . . . . . Reused . | . . . . . . Traps Extracted . | . . . . . . Installed . | . . . . . . Triggered . | . . . . . . Machines | -11 -10 -9 -9 -9 -9 ---------- Run | Yrd Mat Mat Sto Gar Rec Machines Disabled 9 | . . . 3 6 . Max in Single Turn 2 | . . . 1 2 . Garrison Relay 6 | . . . . 6 . Machines Repaired . | . . . . . . Machines Dismantled . | . . . . . . Machines Sabotaged . | . . . . . . Overloaded Fab Kills . | . . . . . . Hacking | -11 -10 -9 -9 -9 -9 --------- Run | Yrd Mat Mat Sto Gar Rec Machines Accessed 24 | . 5 2 8 4 5 Terminals 23 | . 5 2 7 4 5 Fabricators . | . . . . . . Repair Stations . | . . . . . . Recycling Units . | . . . . . . Scanalyzers . | . . . . . . Garrison Access 1 | . . . 1 . . Total Hacks 63 | . 14 9 16 11 13 Successful 24 | . 5 4 7 1 7 Failed 39 | . 9 5 9 10 6 Catastrophic 5 | . 2 . 1 2 . Database Lockouts . | . . . . . . Manual 41 | . 15 7 11 . 8 Terminals 62 | . 14 9 15 11 13 Fabricators . | . . . . . . Repair Stations . | . . . . . . Recycling Units . | . . . . . . Scanalyzers . | . . . . . . Garrison Access 1 | . . . 1 . . Terminal Hacks 9 | . 1 2 2 1 3 Robot Schematic 1 | . . 1 . . . Prototype ID Bank 1 | . . . . . 1 Open Door 1 | . . . 1 . . Branch Access Points 2 | . . 1 . . 1 Emergency Access Points 1 | . . . . 1 . Unreport Threat 2 | . . . 1 . 1 Locate Traps 1 | . 1 . . . . Fabricator Hacks . | . . . . . . Repair Station Hacks . | . . . . . . Recycling Unit Hacks . | . . . . . . Scanalyzer . | . . . . . . Garrison Access Hacks 1 | . . . 1 . . Unlock Access 1 | . . . 1 . . Unauthorized Hacks 14 | . 4 2 4 . 4 Terminals 14 | . 4 2 4 . 4 Botnet 14 | . 4 2 4 . 4 Fabricators . | . . . . . . Repair Stations . | . . . . . . Recycling Units . | . . . . . . Scanalyzers . | . . . . . . Garrison Access . | . . . . . . Data Cores Recovered 1 | . . 1 . . . Used . | . . . . . . Hacking Detections 19 | . 5 2 6 3 3 Full Trace Events 4 | . . . . 2 2 Feedback Events . | . . . . . . Feedback Blocked . | . . . . . . Robot Schematics Acquired 1 | . . 1 . . . Robots Built . | . . . . . . Authchips . | . . . . . . Time . | . . . . . . Total Robot Build Rating . | . . . . . . Part Schematics Acquired . | . . . . . . Parts Built . | . . . . . . Authchips . | . . . . . . Time . | . . . . . . Total Part Build Rating . | . . . . . . Part Studies Acquired . | . . . . . . Parts Repaired . | . . . . . . Time . | . . . . . . Parts Recycled . | . . . . . . Recycled Matter . | . . . . . . Retrieved Matter . | . . . . . . Retrieved Components . | . . . . . . Parts Scanalyzed . | . . . . . . Part Schematics Acquired . | . . . . . . Parts Damaged . | . . . . . . Bothacking | -11 -10 -9 -9 -9 -9 ------------ Run | Yrd Mat Mat Sto Gar Rec Used RIF Installer 1 | . . . . 1 . Threat Obfuscator 1 | . . . . 1 . Robots Hacked 8 | . . . . 3 5 Non-combat 3 | . . . . . 3 Combat 5 | . . . . 3 2 Robot Hacks Applied 8 | . . . . 3 5 ignore_parts 3 | . . . . . 3 formatsys_high 5 | . . . . 3 2 Relay Couplers Released 24 | . . . . 24 . Machine Destruction 24 | . . . . 24 . Attached 5 | . . . . 3 2 Fabnet Peak Effective % . | . . . . . . Robots Rewired 10 | . . . . . 10 Allies Hacked . | . . . . . . Hacks Repelled . | . . . . . . Allies | -11 -10 -9 -9 -9 -9 -------- Run | Yrd Mat Mat Sto Gar Rec Total Allies 15 | . . . . 3 12 Largest Group 7 | . . . . 2 7 Highest-Rated Group 146 | . . . . 16 146 Highest-Rated Ally 34 | . . . . 15 34 Total Orders . | . . . . . . Ally Attacks 40 | . . . . 23 17 Total Damage 610 | . . . . 266 344 Kills 7 | . . . . 4 3 Allies Corrupted . | . . . . . . Allies Melted . | . . . . . . X0-1V1 Amusement Gains 113 | . 16 . . 30 67 Average Entertainment 20 | . 16 10 6 27 33 Good Acts 19 | . . 3 4 7 5 Bad Acts 27 | . . 2 9 12 4 Intel | -11 -10 -9 -9 -9 -9 ------- Run | Yrd Mat Mat Sto Gar Rec Active Infowar (turns) 172 | 47 88 . . . 37 Optics 37 | . . . . . 37 Seismic 135 | 47 88 . . . . Robot Analysis Total . | . . . . . . Derelict Logs Recovered . | . . . . . . Drone Launches . | . . . . . . Drone Recoveries . | . . . . . . Exploration | -11 -10 -9 -9 -9 -9 ------------- Run | Yrd Mat Mat Sto Gar Rec Turns Passed 3516 | 97 519 213 796 1219 672 Spaces Moved 2187 | 45 354 150 484 586 568 Core 68 | 3 . . . 65 . Treads 49 | . . . . 49 . Legs . | . . . . . . Wheels 2070 | 42 354 150 484 472 568 Hover . | . . . . . . Flight . | . . . . . . Fastest Speed 50 | 50 80 80 80 90 90 Average Speed 101 | 78 80 80 85 130 104 Slowest Speed 250 | 80 80 80 101 250 105 Overloaded Moves . | . . . . . . Propulsion Burnouts . | . . . . . . Robots Hopped . | . . . . . . Potential Cave-ins 1 | . . . 1 . . Cave-ins Triggered . | . . . . . . Exploration Rate (%) 52 | 5 64 11 54 90 89 Regions Visited 5 Branch Regions 2 Pre-discovered Areas . | . . . . . . Known Exits Taken 2 | . . 1 1 . . Unknown Exits Taken 2 | 1 1 . . . . Scrap Searched . | . . . . . . Spaces Dug 4 | . . . 3 . 1 Terrain Destroyed 47 | . . . 4 37 6 Melee 4 | . . . 3 . 1 Projectile . | . . . . . . AOE 43 | . . . 1 37 5 Terrain Rammed . | . . . . . . Walls Destroyed . | . . . . . . Machines Disabled . | . . . . . . Actions | -11 -10 -9 -9 -9 -9 --------- Run | Yrd Mat Mat Sto Gar Rec Total 3046 | 75 517 218 693 914 629 Wait 358 | . 92 43 66 146 11 Move 2182 | 44 353 149 484 584 568 Hop . | . . . . . . Pick Up 63 | 9 10 2 12 21 9 Fast Attach 26 | 3 4 3 10 4 2 Attach 29 | 4 3 2 5 12 3 Detach 6 | . . 2 3 1 . Swap 46 | . 2 2 18 19 5 Drop 32 | . 7 3 9 9 4 Fire 178 | 15 44 12 78 28 1 Melee 83 | . . . 8 49 26 Ram 2 | . 2 . . . . Kick . | . . . . . . Crush . | . . . . . . Escape Stasis 40 | . . . . 40 . Rewire 1 | . . . . 1 . Trap . | . . . . . . Miscellaneous . | . . . . . . Route ------- -11/Scrapyard -10/Materials (discovered 3 exits: *Mat / [*Min] / [*Sub]) -9/Materials (discovered 3 exits: *Min x2 / *Sto) -9/Storage (discovered 3 exits: [*Mat] / *Rec / Gar) -9/Garrison (discovered 3 exits: *Rec x3) -9/Recycling (discovered 2 exits: [*Fac] / Scr) History --------- Turn | Location | Event 5 | -11/Scrapyard | Discovered new exit (range 14) 98 | -11/Scrapyard | Entered Materials 312 | -10/Materials | Build established: Mutant 341 | -10/Materials | Discovered new exit (range 6) 467 | -10/Materials | Lost 3 parts (2n1w) 511 | -10/Materials | Discovered new exit (range 12) 595 | -10/Materials | Discovered new exit (range 2) 608 | -10/Materials | Prayed at D.C.S.S. Altar Unit 617 | -10/Materials | Entered another Materials area 617 | -9/Materials | Evolved 2 slots: Propulsion x1, Utility x1 649 | -9/Materials | Identified exit to Mines 649 | -9/Materials | Identified exit to Storage 769 | -9/Materials | Core integrity permanently improved by X0-1V1 (+400) 797 | -9/Materials | X0-1V1 added 0b10 threat records associated with you (major) 830 | -9/Materials | Entered Storage 946 | -9/Storage | Mass support permanently improved by X0-1V1 (+8; -220 max core) 1135 | -9/Storage | X0-1V1 vaporized surrounding terrain (radius 17) 1203 | -9/Storage | Discovered new exit (range 12) 1216 | -9/Storage | Lost 3 parts (2n1w) 1313 | -9/Storage | X0-1V1 caused items to flee you 1345 | -9/Storage | Discovered new exit (range 16) 1406 | -9/Storage | X0-1V1 announced a LAN party 1442 | -9/Storage | Items stopped fleeing you 1462 | -9/Storage | Build established: Scavenger-Mutant 1480 | -9/Storage | X0-1V1 activates XOMVISION 1510 | -9/Storage | Garrison activated, responded to threat 1572 | -9/Storage | Lost 4 parts (2n1u1w) 1626 | -9/Storage | Identified exit to Garrison 1626 | -9/Storage | Entered Garrison 1637 | -9/Garrison | Triggered checkpoint 1647 | -9/Garrison | Sight range permanently improved by X0-1V1 (+2; -300 max core) 1670 | -9/Garrison | Garrison Relay disabled 1739 | -9/Garrison | Installed Relay Interface Framework 1778 | -9/Garrison | Expanded RIF knowledge: Threat Obfuscation 1846 | -9/Garrison | Triggered checkpoint 1886 | -9/Garrison | Identified exit to Recycling 1886 | -9/Garrison | X0-1V1 revealed exit location to -9/Recycling 1898 | -9/Garrison | Triggered checkpoint 1966 | -9/Garrison | Triggered checkpoint 1974 | -9/Garrison | Garrison Relay disabled 2004 | -9/Garrison | X0-1V1 sent you into danger 2012 | -9/Garrison | Triggered checkpoint 2057 | -9/Garrison | Destroyed 11 combat bots 2087 | -9/Garrison | X0-1V1 caused items to flee you 2116 | -9/Garrison | Discovered exit to Recycling (range 10) 2145 | -9/Garrison | Garrison Relay disabled 2154 | -9/Garrison | Core integrity fell below 50% 2179 | -9/Garrison | X0-1V1 vaporized surrounding terrain (radius 23) 2184 | -9/Garrison | Lost 5 parts (3n2w) 2305 | -9/Garrison | Items stopped fleeing you 2306 | -9/Garrison | Build established: Mutant 2358 | -9/Garrison | Garrison Relay disabled 2385 | -9/Garrison | Garrison Relay disabled 2448 | -9/Garrison | Triggered checkpoint 2584 | -9/Garrison | Triggered checkpoint 2747 | -9/Garrison | Discovered exit to Recycling (range 5) 2772 | -9/Garrison | Triggered checkpoint 2813 | -9/Garrison | X0-1V1 vaporized surrounding terrain (radius 23) 2820 | -9/Garrison | X0-1V1 upgraded hostiles (x1) 2828 | -9/Garrison | Core integrity fell below 20% 2845 | -9/Garrison | Entered Recycling 2868 | -9/Recycling | Lost 6 parts (1p2n1u2w) 2885 | -9/Recycling | X0-1V1 vaporized surrounding terrain (radius 23) 3118 | -9/Recycling | Build established: Bothacker-Mutant 3248 | -9/Recycling | Discovered new exit (range 18) 3339 | -9/Recycling | Lost 3 allies 3443 | -9/Recycling | X0-1V1 activates XOMVISION 3490 | -9/Recycling | Identified exit to Scraptown 3490 | -9/Recycling | X0-1V1 revealed exit location to -9/Scraptown 3517 | -9/Recycling | Destroyed self with Rocket Launcher Last Messages --------------- Trojan loaded successfully. Testing... Terminal linked with 3 systems. Awaiting botnet instructions. >>Alert(Purge) Purged threat record, alert level lowered. 03443_ Suggestive images of robots vie for attention in your data streams. 03443_ X0-1V1: "Enjoy your XOMVISION!" 03460_ X0-1V1 thinks 0b10 needs to up its game. 03460_ ALERT: Dispatching surplus targeted Assault squad. 03474_ X0-1V1 flashes the Relay Coupler [Sentry] buffer. 03479_ Discarded Relay Coupler [Sentry]. 03490_ X0-1V1: "I guarantee there's even more fun over that way." 03490_ EXIT=REVEALED: SCRAPTOWN 03517_ Destroyed Melee Analysis Suite. 03517_ X0-1V1 chortles! Map ----- +----------------------------------------------------+ | # #?# # """ #????????????? | | / ### # """ #????????????? | | # ## # """ #????????????? | | "##!!!######## ### # """ #????????????? | | ###! !#??????# #?# # """ #????????????? | | ??#########??# #?# # #????????????? | | ?????# #??# #?# # #????????????? | | ?????# #??# #?# ##+####????????????? | | ?????# #??# #?# #???????????????? | | ?????# #??###+###?# #???????????????? | | ?????# [#????#r#???# #???????????????? | | ?????# ###### #???# #???????????????? | | ?????# ##"""# ###?# #???????????????? | | ?????# [##"Y"# //### ###?????????????? | | ?????# ] / //#"" ""#?????????????? | | ????# ### //#"Tm Y"#?????????????? | | ????## #?# ###""r ""#?????????????? | | ?????#] #?# #?### % ###?????????????? | | ?????# #?# #???# #???????????????? | | ?????##+##### d#####gg ####???????????????? | | +##### ldYrrgl #??????????????????? | | r ### #######????????????? | | ## #????????????? | | ## #????????????? | | # #????????????? | | ## @ #????????????? | | ## #????????????? | | # #####/########"## #????????????? | | ### ! r### #????????????? | | ###!!! ##r #????????????? | | + ### r#???????????? | | ### ! ! #?# ##???????????? | | ??#!! ! #?# #????????????? | | ??# #?# #????????????? | | ??###############?##############????????????? | | ????????????????????????????????????????????? | | ????????????????????????????????????????????? | | | | | | | | | | | | | | | | | | | | | | | | | | | +----------------------------------------------------+ Best States ------------- Heat Dissipation 100 Energy Generation 14 Energy Capacity 280 Matter Stores 300 Matter Capacity 300 Sight Range 23 Terrain Scan Density 10 Evasion (%) 44 Targeting Accuracy 6 Recoil Reduction 2 Relay Coupler Types 1 Relay Coupler Value 110 Authchip Count 3 Item Schematics ----------------- None Robot Schematics ------------------ O-16 Technician | -9/Materials | Hacked Fabricated ------------ Nothing Repaired ---------- Nothing Studied --------- None Alien Tech Used ----------------- None Achievements -------------- None Challenges ------------ None Game ------ Seed RapidThermicAxe Manual? 0 Play Time 00:49:52 Cumulative 170.8 hours Start 2026.09.18 @ 20:28:41 End 2026.09.18 @ 21:18:04 Sessions 1 Manual Loads 0 Difficulty Rogue Special Mode None Game No. 78 Rogue 78 Adventurer 0 Explorer 0 Win Type - Total 4 Types 3/0/0/0/1/0/0/0/0/0 Lore% 19 Gallery% 52 Achievement% 36 Wizard Run 0 Options --------- Layout 1 ASCII 0 Keyboard 0 Movement Arrows Keybinds 0 Fullscreen 1 Font 24/Smallcaps Map View 50x35 Zoom Use 0% Tactical HUD 1 Map Filters NONE Filters NONE Steam 1 RUN: e359d408-d64b-47b1-9dd0-e4cbf214bd7a